[Event "Romanian-ch Youth Girls U20 2024"]
[Site "Eforie Nord"]
[Date "2024.04.13"]
[Round "3.2"]
[White "Anghel, Maria"]
[Black "Rata, Anamaria"]
[Result "1/2-1/2"]
[ECO "A17"]
[WhiteElo "1877"]
[BlackElo "1790"]
[Annotator "NA RC COMBH"]
[PlyCount "113"]
[EventDate "2024.04.10"]
[EventType "swiss"]
[EventCountry "ROU"]
[SourceTitle "playchess.com"]
[Source "ChessBase"]
[SourceQuality "1"]
[TimeControl "5400+30"]

1. c4 {[%emt 0:00:06]} Nf6 {[%emt 0:00:12]} 2. Nc3 {[%emt 0:00:13]} e6 {[%emt 0:00:14]} 3. g3 {[%emt 0:00:56]} d5 {[%emt 0:00:42]} 4. Bg2 {[%emt 0:00:45]} c6 {[%emt 0:00:55]} 5. cxd5 {[%emt 0:05:46]} exd5 {[%emt 0:01:39]} 6. d4 {[%emt 0:00:09]} Bf5 {[%emt 0:01:43]} 7. Nf3 {[%emt 0:12:33]} Bd6 {[%emt 0:03:29]} 8. Nh4 {[%emt 0:08:39]} Bg6 {[%emt 0:12:50]} 9. Nxg6 {[%emt 0:01:47]} hxg6 {[%emt 0:00:08]} 10. Bg5 {[%emt 0:02:38]} Nbd7 {[%emt 0:01:10]} 11. O-O {[%emt 0:02:20]} Qb6 {[%emt 0:17:24]} 12. e4 {[%emt 0:04:30]} dxe4 {[%emt 0:04:47]} 13. Nxe4 {[%emt 0:02:54]} Nxe4 {[%emt 0:00:46]} 14. Bxe4 {[%emt 0:00:12]} O-O {[%emt 0:11:07]} 15. h4 {[%emt 0:00:41]} Nf6 {[%emt 0:09:21]} 16. Bxf6 {[%emt 0:02:04]} gxf6 {[%emt 0:00:07]} 17. h5 {[%emt 0:01:01]} f5 {[%emt 0:02:50]} 18. Bc2 {[%emt 0:01:45]} Kg7 {[%emt 0:02:49]} 19. Kg2 {[%emt 0:15:25]} Rh8 {[%emt 0:03:34]} 20. Rh1 {[%emt 0:01:19]} Rh6 {[%emt 0:09:21]} 21. Qd2 {[%emt 0:03:25]} Rah8 {[%emt 0:01:46]} 22. g4 {[%emt 0:06:25]} fxg4 {[%emt 0:03:08]} 23. hxg6 {[%emt 0:04:10]} fxg6 {[%emt 0:04:28]} 24. Qd3 {[%emt 0:04:50]} Qa5 {[%emt 0:01:37]} 25. Qe4 {[%emt 0:08:14]} Rh2+ {[%emt 0:05:05]} 26. Rxh2 {[%emt 0:00:15]} Rxh2+ {[%emt 0:00:03]} 27. Kg1 {[%emt 0:01:42]} Qh5 {[%emt 0:00:32]} 28. Re1 {[%emt 0:03:24]} g3 {[%emt 0:01:49]} 29. fxg3 {[%emt 0:00:39]} Rd2 {[%emt 0:00:37]} 30. Qxg6+ {[%emt 0:04:19]} Qxg6 {[%emt 0:00:02]} 31. Bxg6 {[%emt 0:00:08]} Bxg3 {[%emt 0:00:24]} 32. Re6 {[%emt 0:00:33]} Bf2+ {[%emt 0:01:01]} 33. Kf1 {[%emt 0:00:54]} Bxd4 {[%emt 0:00:22]} 34. b3 {[%emt 0:00:48]} Rxa2 {[%emt 0:00:25]} 35. Be4 {[%emt 0:00:13]} Kf7 {[%emt 0:00:53]} 36. Rd6 {[%emt 0:00:10]} Bb6 {[%emt 0:00:35]} 37. Rd7+ {[%emt 0:00:09]} Ke6 {[%emt 0:00:06]} 38. Rxb7 {[%emt 0:00:07]} c5 {[%emt 0:00:24]} 39. Bd3 {[%emt 0:00:21]} Ke5 {[%emt 0:00:26]} 40. Bc4 {[%emt 0:00:18]} Kd4 {[%emt 0:00:39]} 41. Rd7+ {[%emt 0:00:48]} Kc3 {[%emt 0:00:33]} 42. Rf7 {[%emt 0:01:33]} Kb4 {[%emt 0:00:44]} 43. Rb7 {[%emt 0:00:18]} Rb2 {[%emt 0:00:31]} 44. Ke1 {[%emt 0:00:25]} Rxb3 {[%emt 0:00:30]} 45. Bxb3 {[%emt 0:00:33]} Kxb3 {[%emt 0:00:05]} 46. Kd1 {[%emt 0:00:47]} c4 {[%emt 0:00:29]} 47. Kc1 {[%emt 0:00:27]} Kc3 {[%emt 0:00:54]} 48. Rd7 {[%emt 0:01:20]} Be3+ {[%emt 0:00:35]} 49. Kb1 {[%emt 0:00:13]} a5 {[%emt 0:00:32]} 50. Rd8 {[%emt 0:00:33]} Bc5 {[%emt 0:00:26]} 51. Ra8 {[%emt 0:01:43]} Bb4 {[%emt 0:00:10]} 52. Ka2 {[%emt 0:00:22]} Kc2 {[%emt 0:00:32]} 53. Rh8 {[%emt 0:00:29]} Bd2 {[%emt 0:00:45]} 54. Rh5 {[%emt 0:00:36]} Kd1 {[%emt 0:00:32]} 55. Rc5 {[%emt 0:00:21]} c3 {[%emt 0:00:32]} 56. Rxa5 {[%emt 0:00:06]} c2 {[%emt 0:00:38]} 57. Rc5 {[%emt 0:00:07]} 1/2-1/2

[Event "Romanian-ch Youth Girls U20 2024"]
[Site "Eforie Nord"]
[Date "2024.04.15"]
[Round "4.1"]
[White "Anghel, Maria"]
[Black "Marin, Alexia-Iuliana"]
[Result "1-0"]
[ECO "C78"]
[WhiteElo "1877"]
[BlackElo "1573"]
[Annotator "NA RC"]
[PlyCount "77"]
[EventDate "2024.04.10"]
[EventType "swiss"]
[EventCountry "ROU"]
[SourceTitle "playchess.com"]
[Source "ChessBase"]
[SourceQuality "1"]
[TimeControl "5400+30"]

1. e4 {[%emt 0:00:08]} e5 {[%emt 0:01:07]} 2. Nf3 {[%emt 0:00:08]} Nc6 {[%emt 0:00:06]} 3. Bb5 {[%emt 0:00:05]} a6 {[%emt 0:00:25]} 4. Ba4 {[%emt 0:00:04]} Nf6 {[%emt 0:01:30]} 5. O-O {[%emt 0:00:14]} b5 {[%emt 0:02:00]} 6. Bb3 {[%emt 0:00:05]} Bc5 {[%emt 0:00:05]} 7. a4 {[%emt 0:00:25]} Bb7 {[%emt 0:07:43]} 8. c3 {[%emt 0:00:08]} d6 {[%emt 0:01:13]} 9. d4 {[%emt 0:00:25]} Bb6 {[%emt 0:01:19]} 10. Bg5 {[%emt 0:00:05]} h6 {[%emt 0:04:43]} 11. Bxf6 {[%emt 0:00:11]} Qxf6 {[%emt 0:00:59]} 12. Bd5 {[%emt 0:00:10]} O-O {[%emt 0:03:30]} 13. Na3 {[%emt 0:00:06]} bxa4 {[%emt 0:13:00]} 14. Nc4 {[%emt 0:00:11]} exd4 {[%emt 0:04:34]} 15. cxd4 {[%emt 0:00:15]} Nd8 {[%emt 0:07:26]} 16. Bxb7 {[%emt 0:00:23]} Nxb7 {[%emt 0:00:08]} 17. Nxb6 {[%emt 0:01:05]} cxb6 {[%emt 0:02:29]} 18. Qxa4 {[%emt 0:02:39]} b5 {[%emt 0:02:12]} 19. Qb4 {[%emt 0:01:56]} Rfc8 {[%emt 0:06:09]} 20. Rfc1 {[%emt 0:00:59]} Qf4 {[%emt 0:04:59]} 21. Qe1 {[%emt 0:07:35]} Re8 {[%emt 0:02:39]} 22. Rc7 {[%emt 0:10:32]} Rxe4 {[%emt 0:04:46]} 23. Qd2 {[%emt 0:00:57]} Qxd2 {[%emt 0:00:29]} 24. Nxd2 {[%emt 0:00:10]} Rxd4 {[%emt 0:00:25]} 25. Nf3 {[%emt 0:00:14]} Rb4 {[%emt 0:02:42]} 26. Rxb7 {[%emt 0:00:06]} Rxb2 {[%emt 0:00:07]} 27. Rd7 {[%emt 0:02:51]} a5 {[%emt 0:08:14]} 28. Rxd6 {[%emt 0:00:15]} a4 {[%emt 0:00:27]} 29. Rd2 {[%emt 0:03:42]} Rb3 {[%emt 0:10:05]} 30. Nd4 {[%emt 0:03:34]} Rb4 {[%emt 0:00:58]} 31. g3 {[%emt 0:00:16]} a3 {[%emt 0:04:13]} 32. Kg2 {[%emt 0:19:00]} Rb2 {[%emt 0:01:52]} 33. Rxa3 {[%emt 0:00:42]} Rxd2 {[%emt 0:01:48]} 34. Rxa8+ {[%emt 0:00:07]} Kh7 {[%emt 0:00:03]} 35. Nxb5 {[%emt 0:00:05]} Rd5 {[%emt 0:01:13]} 36. Nc3 {[%emt 0:00:40]} Rc5 {[%emt 0:00:38]} 37. Ne4 {[%emt 0:00:23]} Rc7 {[%emt 0:00:38]} 38. h4 {[%emt 0:00:59]} g6 {[%emt 0:01:13]} 39. Nf6+ {[%emt 0:00:08]} 1-0

[Event "Romanian-ch Youth Girls U20 2024"]
[Site "Eforie Nord"]
[Date "2024.04.15"]
[Round "4.2"]
[White "Trifoi, Mihaela-Ioana"]
[Black "Batagan, Ilinca-Petra"]
[Result "1/2-1/2"]
[ECO "C55"]
[WhiteElo "2011"]
[BlackElo "1908"]
[Annotator "NA RC"]
[PlyCount "94"]
[EventDate "2024.04.10"]
[EventType "swiss"]
[EventCountry "ROU"]
[SourceTitle "playchess.com"]
[Source "ChessBase"]
[SourceQuality "1"]
[TimeControl "5400+30"]

1. e4 {[%emt 0:00:24]} e5 {[%emt 0:00:35]} 2. Nf3 {[%emt 0:00:05]} Nc6 {[%emt 0:00:05]} 3. Bc4 {[%emt 0:00:05]} Nf6 {[%emt 0:00:45]} 4. d3 {[%emt 0:00:06]} h6 {[%emt 0:01:09]} 5. O-O {[%emt 0:00:13]} d6 {[%emt 0:01:09]} 6. c3 {[%emt 0:00:06]} g6 {[%emt 0:01:07]} 7. Bb3 {[%emt 0:00:07]} Bg7 {[%emt 0:01:00]} 8. Nbd2 {[%emt 0:00:09]} O-O {[%emt 0:00:54]} 9. h3 {[%emt 0:00:07]} Na5 {[%emt 0:02:22]} 10. Bc2 {[%emt 0:00:09]} c5 {[%emt 0:00:08]} 11. b4 {[%emt 0:00:54]} Nc6 {[%emt 0:10:49]} 12. b5 {[%emt 0:00:09]} Nb8 {[%emt 0:05:35]} 13. a4 {[%emt 0:05:30]} Nh5 {[%emt 0:10:22]} 14. Nb3 {[%emt 0:03:05]} Kh7 {[%emt 0:05:03]} 15. d4 {[%emt 0:00:48]} cxd4 {[%emt 0:17:41]} 16. cxd4 {[%emt 0:00:08]} Nd7 {[%emt 0:00:24]} 17. Bb2 {[%emt 0:01:06]} exd4 {[%emt 0:02:59]} 18. Bxd4 {[%emt 0:00:50]} Ne5 {[%emt 0:02:35]} 19. Nxe5 {[%emt 0:01:35]} Bxe5 {[%emt 0:04:50]} 20. Bxe5 {[%emt 0:04:07]} dxe5 {[%emt 0:00:06]} 21. Qxd8 {[%emt 0:00:31]} Rxd8 {[%emt 0:00:05]} 22. Rfd1 {[%emt 0:00:07]} Be6 {[%emt 0:02:33]} 23. Nc5 {[%emt 0:01:10]} Rdc8 {[%emt 0:03:25]} 24. Nxe6 {[%emt 0:04:27]} Rxc2 {[%emt 0:00:38]} 25. Rd7 {[%emt 0:00:10]} Kg8 {[%emt 0:02:14]} 26. Rd8+ {[%emt 0:22:32]} Rxd8 {[%emt 0:00:23]} 27. Nxd8 {[%emt 0:00:06]} Rc7 {[%emt 0:01:38]} 28. Rd1 {[%emt 0:00:37]} Nf6 {[%emt 0:03:54]} 29. f3 {[%emt 0:05:14]} Kf8 {[%emt 0:03:29]} 30. a5 {[%emt 0:00:29]} Ke7 {[%emt 0:02:07]} 31. b6 {[%emt 0:03:12]} axb6 {[%emt 0:00:06]} 32. axb6 {[%emt 0:00:06]} Rd7 {[%emt 0:00:09]} 33. Rxd7+ {[%emt 0:00:15]} Nxd7 {[%emt 0:00:07]} 34. Nxb7 {[%emt 0:00:04]} Nxb6 {[%emt 0:00:07]} 35. Kf2 {[%emt 0:01:04]} Nc4 {[%emt 0:02:59]} 36. Ke2 {[%emt 0:00:36]} f5 {[%emt 0:02:36]} 37. exf5 {[%emt 0:00:46]} gxf5 {[%emt 0:00:07]} 38. g4 {[%emt 0:00:12]} Kf6 {[%emt 0:03:35]} 39. h4 {[%emt 0:01:28]} e4 {[%emt 0:01:08]} 40. Nc5 {[%emt 0:00:54]} exf3+ {[%emt 0:00:33]} 41. Kxf3 {[%emt 0:00:05]} Ne5+ {[%emt 0:01:00]} 42. Kf4 {[%emt 0:00:05]} fxg4 {[%emt 0:02:02]} 43. h5 {[%emt 0:00:19]} g3 {[%emt 0:02:06]} 44. Ne4+ {[%emt 0:00:07]} Ke6 {[%emt 0:00:03]} 45. Nxg3 {[%emt 0:00:06]} Nd7 {[%emt 0:00:37]} 46. Nf5 {[%emt 0:00:17]} Nf6 {[%emt 0:00:17]} 47. Nxh6 {[%emt 0:00:08]} Nxh5+ {[%emt 0:00:03]} 1/2-1/2

[Event "Romanian-ch Youth Girls U20 2024"]
[Site "Eforie Nord"]
[Date "2024.04.16"]
[Round "5.1"]
[White "Batagan, Ilinca-Petra"]
[Black "Obada, Ema"]
[Result "0-1"]
[ECO "B12"]
[WhiteElo "1908"]
[BlackElo "1992"]
[Annotator "TA"]
[PlyCount "68"]
[EventDate "2024.04.10"]
[EventType "swiss"]
[EventCountry "ROU"]
[SourceTitle "playchess.com"]
[Source "ChessBase"]
[SourceQuality "1"]
[TimeControl "5400+30"]

{[%evp 9,68,22,23,13,15,0,0,-14,-21,-12,-9,-29,-1,-35,-17,-23,10,-27,0,-81,-106,-95,-93,-335,-335,-345,-296,-354,-177,-165,-172,-175,-172,-352,-307,-506,-505,-514,-482,-463,-178,-255,-170,-205,-190,-193,-208,-223,-226,-218,-193,-214,-201,-29989,-29990,-29991,-29992,-29992,-29993,-29998,-29999]} 1. e4 {[%emt 0:00:23][%cal Be2e4,Be4e5][%mdl 32]} c6 {[%emt 0:00:09]} 2. d4 {[%emt 0:00:45]} d5 {[%emt 0:00:06]} 3. e5 {[%emt 0:00:08]} c5 {[%emt 0:00:05]} 4. dxc5 {[%emt 0:01:00]} e6 {[%emt 0:00:06]} 5. Nf3 {[%emt 0:00:49]} Bxc5 {[%emt 0:00:22]} 6. a3 {[%emt 0:00:48]} f6 {[%emt 0:00:26]} 7. c4 {[%emt 0:01:17]} fxe5 {[%emt 0:04:59]} 8. Nxe5 {[%emt 0:02:22] The position is equal.} Nf6 {[%emt 0:07:56] White must now prevent ...0-0.} 9. Nd3 {[%emt 0:16:11]} Bd6 {[%emt 0:17:54]} 10. cxd5 {[%emt 0:04:23]} exd5 {[%emt 0:01:03]} 11. Bg5 {[%emt 0:05:27]} O-O {[%emt 0:01:02]} 12. Be2 {[%emt 0:00:41]} Qe8 {[%emt 0:27:08]} 13. Nd2 {[%emt 0:11:03]} (13. O-O {is more complex.} Ne4 14. Be3 Nc6 15. Nc3) 13... Nc6 {[%emt 0:04:33]} 14. Nf3 {[%emt 0:03:54] Against Nd4} (14. O-O $11 {remains equal.}) 14... Ne4 $1 $17 {[%emt 0:01:59][%cal Of8f3] Hoping for ...Rxf3!} 15. Be3 {[%emt 0:14:14]} Bg4 {[%emt 0:04:53] Black has more active pieces.} 16. h3 $2 {[%emt 0:06:14] [#] This costs White the game.} (16. Qb3 $17) 16... Bxf3 $1 $19 {[%emt 0:01:56]} 17. gxf3 {[%emt 0:00:54] [#]} Ng3 {[%emt 0:05:35][%mdl 512] Excellent horsemanship.} 18. Rg1 {[%emt 0:04:52]} (18. fxg3 Qxe3) 18... d4 {[%emt 0:04:29]} (18... Nxe2 $142 19. Qxe2 d4) 19. fxg3 {[%emt 0:09:26]} Qxe3 {[%emt 0:00:55]} 20. Kf1 {[%emt 0:01:05] White is weak on the dark squares} Rae8 {[%emt 0:00:27] And now ...Ne5 would win.} 21. Rc1 $2 {[%emt 0:02:15]} (21. f4 g5 22. Bf3 gxf4 23. g4) 21... Ne7 {[%emt 0:02:34]} 22. Nf2 $2 {[%emt 0:06:57]} (22. f4 Nf5 23. Bf3) 22... Nf5 {[%emt 0:00:50]} 23. Ng4 {[%emt 0:00:16] Inhibits Qh6.} Qe7 {[%emt 0:01:28]} (23... Nxg3+ $2 {perishes.} 24. Rxg3 Qf4 (24... Qxe2+ $2 25. Qxe2 Rxe2 26. Nh6+ Kh8 27. Nf7+ Kg8 28. Nxd6 $18) 25. Rg1 $16 (25. Rg2 Rxe2 26. Rxe2 Qxf3+ 27. Kg1 Bf4 $16)) 24. Bb5 {[%emt 0:02:31]} Rc8 {[%emt 0:05:17]} (24... Nxg3+ $2 25. Rxg3 Bxg3 26. Bxe8 Qxe8 (26... Rxe8 $2 27. Qxd4 Qe2+ 28. Kg1 $19) 27. Qe2 $19) (24... h5 25. Bxe8 Rxe8 (25... Qxe8 $2 26. Qb3+ Kh8 27. Re1 $19) 26. Qb3+ Kh8) 25. f4 {[%emt 0:02:48]} (25. Rxc8 {was necessary.} Rxc8 26. f4) 25... h5 {[%emt 0:01:26]} 26. Qb3+ {[%emt 0:01:31]} Kh8 {[%emt 0:00:18]} 27. Re1 {[%emt 0:00:04]} Qc7 {[%emt 0:01:03] Strongly threatening ...Bxf4.} 28. Ne5 {[%emt 0:01:26] [#]} Bxe5 {[%emt 0:00:33]} 29. Rxe5 {[%emt 0:00:05] [#]} Nxg3+ $1 {[%emt 0:01:05][%mdl 512]} 30. Kg2 {[%emt 0:00:54]} Rxf4 {[%emt 0:00:56]} 31. Rc1 $2 {[%emt 0:00:45]} (31. Rge1 $19 Nf5 32. Qe6) 31... Qxc1 {[%emt 0:00:25] Black mates.} 32. Kxg3 {[%emt 0:00:02]} h4+ {[%emt 0:00:12]} 33. Kg2 {[%emt 0:00:19]} Rc2+ {[%emt 0:00:13]} 34. Be2 {[%emt 0:00:26]} Qf1+ {[%emt 0:00:11] Weighted Error Value: White=0.58/Black=0.28 (precise) .  Loses game:     	White=1     	---        Mistake:       	White=5     	Black=2      Inaccurate:     	White=3     	Black=4      OK:         	White=9     	Black=11     Best:        	White=2     	Black=4      Strong:       	---       	Black=2} 0-1

[Event "Romanian-ch Youth Girls U20 2024"]
[Site "Eforie Nord"]
[Date "2024.04.16"]
[Round "5.2"]
[White "Marin, Alexia-Iuliana"]
[Black "Trifoi, Mihaela-Ioana"]
[Result "0-1"]
[ECO "E06"]
[WhiteElo "1573"]
[BlackElo "2011"]
[Annotator "NA RC"]
[PlyCount "46"]
[EventDate "2024.04.10"]
[EventType "swiss"]
[EventCountry "ROU"]
[SourceTitle "playchess.com"]
[Source "ChessBase"]
[SourceQuality "1"]
[TimeControl "5400+30"]

1. d4 {[%emt 0:02:06]} d5 {[%emt 0:00:55]} 2. g3 {[%emt 0:00:41]} Nf6 {[%emt 1:30:35]} 3. Bg2 e6 {[%emt 0:00:00]} 4. Nf3 {[%emt 0:00:37]} Be7 {[%emt 0:00:00]} 5. O-O {[%emt 0:00:40]} O-O {[%emt 0:00:00]} 6. c4 {[%emt 0:02:54]} c6 {[%emt 0:00:00]} 7. Qc2 {[%emt 0:06:29]} b5 {[%emt 0:00:00]} 8. b3 {[%emt 0:17:32]} a5 {[%emt 0:00:00]} 9. a3 {[%emt 0:02:45]} a4 {[%emt 0:00:00]} 10. cxb5 {[%emt 0:08:58]} cxb5 {[%emt 0:00:00]} 11. Nc3 {[%emt 0:08:26]} Qc7 {[%emt 0:00:00]} 12. Bf4 {[%emt 0:00:38]} axb3 {[%emt 0:00:00]} 13. Qxb3 {[%emt 0:06:30]} Qc4 {[%emt 0:00:00]} 14. Qxb5 {[%emt 0:03:08]} Qxc3 {[%emt 0:00:00]} 15. Bxb8 {[%emt 0:00:06]} Bd7 {[%emt 0:00:00]} 16. Qb1 {[%emt 0:12:42]} Rfxb8 {[%emt 0:00:00]} 17. Qd1 $19 {[%emt 0:02:41]} Bxa3 {[%emt 0:00:00]} 18. Ne5 {[%emt 0:07:15]} Bb5 {[%emt 0:00:00]} 19. Re1 {[%emt 0:00:51]} Bb4 {[%emt 0:00:00]} 20. Rc1 {[%emt 0:01:23]} Qxe1+ {[%emt 0:00:00]} 21. Qxe1 {[%emt 0:00:11]} Bxe1 {[%emt 0:00:00]} 22. Rxe1 {[%emt 0:00:11]} Ra2 {[%emt 0:00:00]} 23. e3 {[%emt 0:00:52]} Rba8 {[%emt 0:00:00]} 0-1

[Event "Romanian-ch Youth Girls U20 2024"]
[Site "Eforie Nord"]
[Date "2024.04.17"]
[Round "6.1"]
[White "Trifoi, Mihaela-Ioana"]
[Black "Patru, Alexandra-Ioana"]
[Result "1-0"]
[ECO "C41"]
[WhiteElo "2011"]
[BlackElo "1838"]
[Annotator "TA"]
[PlyCount "89"]
[EventDate "2024.04.10"]
[EventType "swiss"]
[EventCountry "ROU"]
[SourceTitle "playchess.com"]
[Source "ChessBase"]
[SourceQuality "1"]
[TimeControl "5400+30"]

{[%evp 10,89,29,17,30,31,23,37,43,37,44,-14,-10,-39,41,33,87,22,19,27,30,22,41,25,31,4,19,0,0,-16,-25,-61,-27,-27,-29,-110,44,53,71,60,55,54,96,82,72,0,121,-67,-70,-356,-18,-71,-83,-91,75,72,362,197,288,296,322,327,332,325,477,486,489,489,586,572,979,968,1440,1427,1853,1783,29978,29978,29984,29984,29992,29993]} 1. e4 {[%emt 0:03:47]} e5 {[%emt 0:00:05]} 2. Nf3 {[%emt 0:00:14]} d6 {[%emt 0:00:04]} 3. c3 {[%emt 0:00:47]} Nf6 {[%emt 0:00:15]} 4. Bd3 {[%emt 0:00:06]} Be7 {[%emt 0:00:16]} 5. Bc2 {[%emt 0:00:05]} O-O {[%emt 0:00:07]} 6. O-O {[%emt 0:00:11]} Bg4 {[%emt 0:00:37]} 7. h3 {[%emt 0:00:09]} Bh5 {[%emt 0:00:05]} 8. d4 {[%emt 0:00:04]} exd4 {[%emt 0:00:51] White is slightly better.} 9. cxd4 {[%emt 0:00:05]} Nc6 {[%emt 0:01:01]} 10. Be3 {[%emt 0:00:42]} ({Better is} 10. Nc3 $14) 10... Nb4 $11 {[%emt 0:05:43]} 11. Nbd2 {[%emt 0:01:43]} Bg6 {[%emt 0:01:12]} (11... Nxc2 $15 12. Qxc2 Bg6) 12. Bb1 $14 {[%emt 0:00:37]} Nc6 {[%emt 0:08:55]} (12... d5 $14) 13. Re1 {[%emt 0:06:02]} (13. d5 $16 Nb8 14. Qb3) 13... d5 $11 {[%emt 0:17:19]} 14. e5 {[%emt 0:05:44]} Ne4 {[%emt 0:00:07]} 15. a3 {[%emt 0:04:39]} f5 {[%emt 0:04:33]} 16. exf6 {[%emt 0:03:07]} Bxf6 {[%emt 0:04:47]} 17. Ba2 {[%emt 0:01:42][%cal Of3e5]} Kh8 {[%emt 0:00:22]} 18. Rc1 {[%emt 0:03:50]} Bh5 {[%emt 0:03:25]} 19. g4 {[%emt 0:11:30]} (19. Qa4 $5) 19... Bg6 {[%emt 0:00:32]} 20. Nf1 {[%emt 0:03:23]} Bh4 {[%emt 0:16:01]} 21. Qe2 {[%emt 0:08:14]} Bg5 {[%emt 0:04:19]} 22. N1h2 {[%emt 0:14:59]} (22. N1d2 $11) 22... Re8 $2 {[%emt 0:01:10]} (22... Bxe3 $17 23. Qxe3 Qd6) 23. Qb5 $14 {[%emt 0:01:13][%csl LRb7,LRd5]} Bxe3 {[%emt 0:08:51]} 24. Rxe3 {[%emt 0:01:35]} Qf6 {[%emt 0:00:21]} 25. Bxd5 {[%emt 0:03:29]} (25. Qxd5 Rad8 26. Qc4 (26. g5 $2 Qf4 $19) 26... Nxd4 27. Qxc7 Nxf2 28. Rxe8+ Rxe8 29. Kxf2 Nxf3 30. Nxf3 Qxb2+ 31. Kg3 Qxa2 $17) 25... Nxd4 {[%emt 0:00:31]} 26. Qxb7 {[%emt 0:01:08][%cal Rd5e4]} Rab8 {[%emt 0:01:38]} 27. Qxa7 {[%emt 0:01:08]} (27. Qxc7 $16 {Bxe4 is the strong threat.} Nb5 (27... Rxb2 $2 28. Bxe4 Ne2+ 29. Kg2 $18) 28. Qc4) 27... Nxf3+ {[%emt 0:03:15]} (27... c5 $2 28. Bxe4 (28. Rxe4 Bxe4 29. Nxd4 Bxd5 $17) 28... Bxe4 29. Rxe4 Nxf3+ 30. Nxf3 Qxf3 31. Rxe8+ Rxe8 32. Qxc5 $18) (27... Nb5 $1 $11 {keeps the balance.} 28. Qa5 Qxb2) 28. Rxf3 $2 {[%emt 0:00:32]} (28. Nxf3 $16 {[%cal Oe3e4] And now Rxe4! would win.} Qxb2 29. Rf1 (29. Qxc7 Qxf2+ 30. Kh1 Rb2)) 28... Qxb2 $15 {[%emt 0:04:48]} 29. Rxc7 {[%emt 0:04:31][%mdl 8192]} (29. Qxc7 $15 Nf6 30. Rxf6 Qxf6 31. Kg2) 29... Ng5 $2 {[%emt 0:05:41]} (29... Qa1+ $19 30. Nf1 Rb1 (30... Nd2 $2 31. Rfc3 $19)) 30. Rfc3 {[%emt 0:00:50]} (30. Qc5 $11) 30... Rbd8 $1 $17 {[%emt 0:01:13][%mdl 1024] Black has strong compensation.} 31. Qb7 {[%emt 0:03:28] [#]} Qa1+ {[%emt 0:00:24] [#]} (31... Qd2 $6 32. Bg2 $11) (31... Qe2 $1 $17 {[%cal Re2e1]} 32. Bg2 (32. Rxg7 $2 Qe1+ 33. Nf1 Qxc3 $19) 32... Rf8) 32. Nf1 $1 $16 {[%emt 0:00:50]} Re1 $2 {[%emt 0:04:46][%mdl 8192]} (32... Qe1 $16 33. Bg2 Re2) 33. Bg2 {[%emt 0:00:05]} (33. Rc8 $142 Rde8 (33... Rxf1+ $2 {is the wrong capture.} 34. Kg2 $18) 34. Kg2) 33... Ree8 {[%emt 0:01:05]} ({Wrong is} 33... Bd3 $2 34. Rxd3 Rf8 35. Rc8 $18) (33... h6 $142) 34. Rc8 $18 {[%emt 0:02:02] Strongly threatening Rxd8.} Nf7 {[%emt 0:01:21]} 35. Rxd8 {[%emt 0:00:40]} Nxd8 {[%emt 0:00:38]} 36. Qb4 {[%emt 0:00:06]} Qd1 {[%emt 0:00:29]} (36... h6 $142 37. a4 Bf7) 37. Re3 {[%emt 0:00:31] White wants to mate with Rxe8+.} Rg8 {[%emt 0:00:46]} 38. a4 {[%emt 0:00:36]} Nf7 {[%emt 0:00:12][%cal Bd8f7,Bf7d6,Bd6e4][%mdl 32]} 39. a5 {[%emt 0:00:17]} Qa1 {[%emt 0:00:48]} 40. Ra3 {[%emt 0:00:33]} Qe5 {[%emt 0:00:05]} 41. a6 {[%emt 0:00:15]} Nd6 {[%emt 0:00:07]} 42. a7 {[%emt 0:00:14]} Be4 {[%emt 0:01:25]} 43. Bxe4 {[%emt 0:00:17] White mates.} Nxe4 {[%emt 0:00:14]} 44. a8=Q {[%emt 0:00:14]} Ng5 {[%emt 0:00:51]} 45. Qbf8 {[%emt 0:01:10] Weighted Error Value: White=0.34/Black=0.78.  Loses game:     	White=1     	Black=1      Missed win:     	---       	Black=1      Mistake:       	White=7     	Black=7      Inaccurate:     	White=2     	Black=4      OK:         	White=12    	Black=11     Best:        	White=3     	Black=3      Strong:       	White=1     	Black=1} 1-0